[Event "Titled Tuesday Blitz November 14 Late 2023"]
[White "Osmak, Yuliia"]
[Black "hristos03"]
[WhiteFideId "14101602"]
[WhiteElo "2495"]
[BlackElo "2380"]
[Result "0-1"]
[Round "7"]
[TimeControl "180+1"]
[Date "2023.11.14"]
[WhiteClock "0:00:00"]
[BlackClock "0:00:02"]
[Board "89"]

1. c4 {[%clk 0:03:00]}  e5 {[%clk 0:02:59]} 2. Nc3 {[%clk 0:03:00]}  Nc6 {[%clk 0:02:57]} 3. Nf3 {[%clk 0:02:58]}  Nf6 {[%clk 0:02:57]} 4. g3 {[%clk 0:02:57]}  Bb4 {[%clk 0:02:56]} 5. Nd5 {[%clk 0:02:55]}  Ba5 {[%clk 0:02:42]} 6. Bg2 {[%clk 0:02:50]}  d6 {[%clk 0:02:34]} 7. O-O {[%clk 0:02:46]}  O-O {[%clk 0:02:18]} 8. Qa4 {[%clk 0:02:26]}  Bb6 {[%clk 0:02:16]} 9. Nxb6 {[%clk 0:02:24]}  cxb6 {[%clk 0:02:14]} 10. d3 {[%clk 0:02:22]}  h6 {[%clk 0:02:09]} 11. Rd1 {[%clk 0:02:15]}  Bd7 {[%clk 0:02:08]} 12. Qa3 {[%clk 0:02:14]}  Qc7 {[%clk 0:02:06]} 13. Nd2 {[%clk 0:02:06]}  Nd4 {[%clk 0:01:55]} 14. e3 {[%clk 0:01:56]}  Nc2 {[%clk 0:01:55]} 15. Qc3 {[%clk 0:01:56]}  Nxa1 {[%clk 0:01:55]} 16. b4 {[%clk 0:01:55]}  Ba4 {[%clk 0:01:40]} 17. Rf1 {[%clk 0:01:46]}  Nc2 {[%clk 0:01:39]} 18. Nb3 {[%clk 0:01:42]}  Nxb4 {[%clk 0:01:27]} 19. Qxb4 {[%clk 0:01:42]}  Bc6 {[%clk 0:01:26]} 20. e4 {[%clk 0:01:38]}  a6 {[%clk 0:00:56]} 21. f4 {[%clk 0:01:34]}  b5 {[%clk 0:00:52]} 22. c5 {[%clk 0:01:15]}  dxc5 {[%clk 0:00:45]} 23. Qxc5 {[%clk 0:01:14]}  Nd7 {[%clk 0:00:42]} 24. Qf2 {[%clk 0:01:12]}  a5 {[%clk 0:00:27]} 25. Be3 {[%clk 0:01:01]}  b6 {[%clk 0:00:10]} 26. d4 {[%clk 0:00:55]}  a4 {[%clk 0:00:08]} 27. Nd2 {[%clk 0:00:54]}  exd4 {[%clk 0:00:07]} 28. Bxd4 {[%clk 0:00:55]}  Rad8 {[%clk 0:00:05]} 29. h4 {[%clk 0:00:42]}  Nc5 {[%clk 0:00:05]} 30. Be5 {[%clk 0:00:40]}  Qb7 {[%clk 0:00:04]} 31. Qe2 {[%clk 0:00:37]}  Rfe8 {[%clk 0:00:03]} 32. Rf2 {[%clk 0:00:25]}  f6 {[%clk 0:00:03]} 33. Ba1 {[%clk 0:00:19]}  Nxe4 {[%clk 0:00:04]} 34. Nxe4 {[%clk 0:00:16]}  Bxe4 {[%clk 0:00:04]} 35. Bh3 {[%clk 0:00:13]}  Bd3 {[%clk 0:00:03]} 36. Qd2 {[%clk 0:00:07]}  Bc4 {[%clk 0:00:03]} 37. Qc1 {[%clk 0:00:06]}  Qf7 {[%clk 0:00:02]} 38. Kh2 {[%clk 0:00:05]}  Qe7 {[%clk 0:00:03]} 39. Qd1 {[%clk 0:00:03]}  Qe3 {[%clk 0:00:03]} 40. Qc2 {[%clk 0:00:02]}  Kh8 {[%clk 0:00:02]} 41. Bg2 {[%clk 0:00:01]}  Re7 {[%clk 0:00:01]} 42. Bb2 {[%clk 0:00:01]}  Qc5 {[%clk 0:00:02]} 43. Bc3 {[%clk 0:00:01]}  Qd6 {[%clk 0:00:02]} 44. Qg6 {[%clk 0:00:01]}  Qe6 {[%clk 0:00:02]} 45. Bb2 {[%clk 0:00:00]}  Kg8 {[%clk 0:00:02]} 0-1


[Site "https://www.chess.com"]

[Event "Titled Tuesday Blitz November 14 Late 2023"]
[White "Van Osch, Mees"]
[Black "Urbina Perez, Juan Antonio"]
[WhiteFideId "1035967"]
[BlackFideId "2217368"]
[WhiteElo "2370"]
[BlackElo "2487"]
[Result "1/2-1/2"]
[Round "7"]
[TimeControl "180+1"]
[Date "2023.11.14"]
[WhiteClock "0:00:29"]
[BlackClock "0:00:39"]
[Board "91"]

1. e4 {[%clk 0:03:00]}  c6 {[%clk 0:02:58]} 2. Nc3 {[%clk 0:02:58]}  d5 {[%clk 0:02:59]} 3. d4 {[%clk 0:02:59]}  dxe4 {[%clk 0:02:56]} 4. Nxe4 {[%clk 0:03:00]}  Nf6 {[%clk 0:02:56]} 5. Nxf6+ {[%clk 0:02:55]}  exf6 {[%clk 0:02:57]} 6. c3 {[%clk 0:02:51]}  Bd6 {[%clk 0:02:57]} 7. Bd3 {[%clk 0:02:51]}  O-O {[%clk 0:02:55]} 8. Qc2 {[%clk 0:02:50]}  Re8+ {[%clk 0:02:54]} 9. Ne2 {[%clk 0:02:50]}  h6 {[%clk 0:02:54]} 10. O-O {[%clk 0:02:38]}  Nd7 {[%clk 0:02:54]} 11. c4 {[%clk 0:02:36]}  c5 {[%clk 0:02:53]} 12. Be3 {[%clk 0:02:33]}  cxd4 {[%clk 0:02:49]} 13. Nxd4 {[%clk 0:02:33]}  Ne5 {[%clk 0:02:48]} 14. Rad1 {[%clk 0:02:27]}  Nxd3 {[%clk 0:02:45]} 15. Qxd3 {[%clk 0:02:27]}  Qe7 {[%clk 0:02:45]} 16. Rfe1 {[%clk 0:02:08]}  Bg4 {[%clk 0:02:39]} 17. Nf5 {[%clk 0:01:48]}  Bxf5 {[%clk 0:02:34]} 18. Qxd6 {[%clk 0:01:29]}  Qxd6 {[%clk 0:02:30]} 19. Rxd6 {[%clk 0:01:30]}  a6 {[%clk 0:02:23]} 20. f3 {[%clk 0:01:27]}  Rad8 {[%clk 0:02:20]} 21. c5 {[%clk 0:01:18]}  Rxd6 {[%clk 0:02:10]} 22. cxd6 {[%clk 0:01:19]}  Re6 {[%clk 0:02:09]} 23. d7 {[%clk 0:01:00]}  Rd6 {[%clk 0:02:09]} 24. Bxh6 {[%clk 0:00:49]}  Rxd7 {[%clk 0:02:09]} 25. Re8+ {[%clk 0:00:40]}  Kh7 {[%clk 0:02:08]} 26. Be3 {[%clk 0:00:41]}  Be6 {[%clk 0:02:07]} 27. a3 {[%clk 0:00:35]}  Rd3 {[%clk 0:01:59]} 28. Kf2 {[%clk 0:00:34]}  Rb3 {[%clk 0:01:57]} 29. Bd4 {[%clk 0:00:34]}  Rd3 {[%clk 0:01:56]} 30. Bc3 {[%clk 0:00:34]}  Rd6 {[%clk 0:01:53]} 31. Re7 {[%clk 0:00:34]}  b5 {[%clk 0:01:53]} 32. Ra7 {[%clk 0:00:34]}  Rc6 {[%clk 0:01:53]} 33. Ke3 {[%clk 0:00:34]}  Bc4 {[%clk 0:01:52]} 34. h4 {[%clk 0:00:31]}  Re6+ {[%clk 0:01:49]} 35. Kf4 {[%clk 0:00:31]}  Kh6 {[%clk 0:01:41]} 36. g4 {[%clk 0:00:31]}  g5+ {[%clk 0:01:41]} 37. Kg3 {[%clk 0:00:25]}  gxh4+ {[%clk 0:01:35]} 38. Kxh4 {[%clk 0:00:25]}  Kg6 {[%clk 0:01:30]} 39. Ra8 {[%clk 0:00:18]}  Kh7 {[%clk 0:01:24]} 40. Kg3 {[%clk 0:00:14]}  Bd3 {[%clk 0:01:07]} 41. Ra7 {[%clk 0:00:13]}  Kg6 {[%clk 0:01:05]} 42. f4 {[%clk 0:00:13]}  f5 {[%clk 0:01:05]} 43. g5 {[%clk 0:00:11]}  Re3+ {[%clk 0:01:04]} 44. Kf2 {[%clk 0:00:11]}  Re2+ {[%clk 0:01:04]} 45. Kf3 {[%clk 0:00:11]}  Re6 {[%clk 0:00:59]} 46. Be5 {[%clk 0:00:11]}  Be4+ {[%clk 0:00:59]} 47. Ke3 {[%clk 0:00:11]}  Rc6 {[%clk 0:00:55]} 48. b3 {[%clk 0:00:08]}  Bd5 {[%clk 0:00:52]} 49. b4 {[%clk 0:00:06]}  Kh5 {[%clk 0:00:52]} 50. Rd7 {[%clk 0:00:04]}  Be6 {[%clk 0:00:51]} 51. Rd6 {[%clk 0:00:04]}  Rxd6 {[%clk 0:00:44]} 52. Bxd6 {[%clk 0:00:05]}  Kg4 {[%clk 0:00:44]} 53. Kd4 {[%clk 0:00:05]}  Bb3 {[%clk 0:00:41]} 54. Kc5 {[%clk 0:00:03]}  Kf3 {[%clk 0:00:41]} 55. Kb6 {[%clk 0:00:04]}  Ke4 {[%clk 0:00:41]} 56. Kxa6 {[%clk 0:00:04]}  Ba4 {[%clk 0:00:42]} 57. Kb6 {[%clk 0:00:04]}  Kd5 {[%clk 0:00:43]} 58. Bb8 {[%clk 0:00:04]}  Ke6 {[%clk 0:00:42]} 59. Kc5 {[%clk 0:00:05]}  f6 {[%clk 0:00:40]} 60. g6 {[%clk 0:00:05]}  Ke7 {[%clk 0:00:40]} 61. Bc7 {[%clk 0:00:02]}  Kf8 {[%clk 0:00:41]} 62. Kd6 {[%clk 0:00:01]}  Kg7 {[%clk 0:00:41]} 63. Ke7 {[%clk 0:00:02]}  Kxg6 {[%clk 0:00:41]} 64. Bb6 {[%clk 0:00:02]}  Bb3 {[%clk 0:00:38]} 65. Bd4 {[%clk 0:00:02]}  Ba4 {[%clk 0:00:38]} 66. Bxf6 {[%clk 0:00:03]}  Kh5 {[%clk 0:00:38]} 67. Be5 {[%clk 0:00:04]}  Kg4 {[%clk 0:00:38]} 68. Kd6 {[%clk 0:00:05]}  Kf3 {[%clk 0:00:37]} 69. Kc5 {[%clk 0:00:06]}  Ke4 {[%clk 0:00:38]} 70. Kd6 {[%clk 0:00:06]}  Kd3 {[%clk 0:00:37]} 71. Ke7 {[%clk 0:00:07]}  Ke3 {[%clk 0:00:36]} 72. Kf6 {[%clk 0:00:08]}  Ke4 {[%clk 0:00:36]} 73. Ke6 {[%clk 0:00:08]}  Bb3+ {[%clk 0:00:36]} 74. Kd6 {[%clk 0:00:09]}  Ba4 {[%clk 0:00:37]} 75. Kc6 {[%clk 0:00:10]}  Kd3 {[%clk 0:00:37]} 76. Kc5 {[%clk 0:00:11]}  Ke4 {[%clk 0:00:37]} 77. Kd6 {[%clk 0:00:12]}  Ke3 {[%clk 0:00:36]} 78. Ke6 {[%clk 0:00:12]}  Bc2 {[%clk 0:00:36]} 79. Kf7 {[%clk 0:00:13]}  Kd3 {[%clk 0:00:35]} 80. Ke7 {[%clk 0:00:14]}  Kc4 {[%clk 0:00:35]} 81. Ke6 {[%clk 0:00:15]}  Kb3 {[%clk 0:00:36]} 82. Bd6 {[%clk 0:00:15]}  Kxa3 {[%clk 0:00:36]} 83. Bc5 {[%clk 0:00:16]}  Kb3 {[%clk 0:00:36]} 84. Ke5 {[%clk 0:00:17]}  Kc4 {[%clk 0:00:36]} 85. Bf8 {[%clk 0:00:17]}  Be4 {[%clk 0:00:35]} 86. Bc5 {[%clk 0:00:18]}  Kd3 {[%clk 0:00:35]} 87. Bf8 {[%clk 0:00:19]}  Ke3 {[%clk 0:00:35]} 88. Kd6 {[%clk 0:00:19]}  Kd3 {[%clk 0:00:36]} 89. Kc5 {[%clk 0:00:19]}  Ke3 {[%clk 0:00:36]} 90. Bd6 {[%clk 0:00:20]}  Bd3 {[%clk 0:00:36]} 91. Be5 {[%clk 0:00:21]}  Ke4 {[%clk 0:00:36]} 92. Bb8 {[%clk 0:00:21]}  Bc4 {[%clk 0:00:36]} 93. Be5 {[%clk 0:00:22]}  Kf3 {[%clk 0:00:37]} 94. Kd6 {[%clk 0:00:22]}  Kg4 {[%clk 0:00:37]} 95. Ke7 {[%clk 0:00:23]}  Kh5 {[%clk 0:00:38]} 96. Kf6 {[%clk 0:00:24]}  Kg4 {[%clk 0:00:37]} 97. Bd6 {[%clk 0:00:24]}  Bd3 {[%clk 0:00:37]} 98. Be5 {[%clk 0:00:25]}  Kf3 {[%clk 0:00:38]} 99. Ke7 {[%clk 0:00:26]}  Ke4 {[%clk 0:00:39]} 100. Kd6 {[%clk 0:00:27]}  Bc4 {[%clk 0:00:38]} 101. Kc5 {[%clk 0:00:27]}  Kd3 {[%clk 0:00:39]} 102. Kd6 {[%clk 0:00:28]}  Ke4 {[%clk 0:00:39]} 103. Kc5 {[%clk 0:00:29]} 1/2-1/2


[Site "https://www.chess.com"]

[Event "Titled Tuesday Blitz November 14 Late 2023"]
[White "ExchangeAB"]
[Black "chessjazda"]
[WhiteElo "2447"]
[BlackElo "2343"]
[Result "1/2-1/2"]
[Round "7"]
[TimeControl "180+1"]
[Date "2023.11.14"]
[WhiteClock "0:00:05"]
[BlackClock "0:00:33"]
[Board "92"]

1. Nf3 {[%clk 0:03:00]}  c6 {[%clk 0:02:56]} 2. b3 {[%clk 0:03:01]}  Nf6 {[%clk 0:02:54]} 3. Bb2 {[%clk 0:03:02]}  d5 {[%clk 0:02:54]} 4. e3 {[%clk 0:03:02]}  Bf5 {[%clk 0:02:54]} 5. d3 {[%clk 0:03:01]}  e6 {[%clk 0:02:54]} 6. Be2 {[%clk 0:03:01]}  Be7 {[%clk 0:02:53]} 7. Nh4 {[%clk 0:03:00]}  Bg6 {[%clk 0:02:53]} 8. O-O {[%clk 0:03:00]}  Nbd7 {[%clk 0:02:52]} 9. Nd2 {[%clk 0:02:59]}  O-O {[%clk 0:02:52]} 10. Nxg6 {[%clk 0:02:59]}  hxg6 {[%clk 0:02:52]} 11. Nf3 {[%clk 0:02:59]}  Bd6 {[%clk 0:02:49]} 12. d4 {[%clk 0:02:58]}  Qe7 {[%clk 0:02:48]} 13. h3 {[%clk 0:02:57]}  e5 {[%clk 0:02:48]} 14. c4 {[%clk 0:02:52]}  e4 {[%clk 0:02:44]} 15. Nd2 {[%clk 0:02:50]}  Nh7 {[%clk 0:02:41]} 16. Qe1 {[%clk 0:02:22]}  Rae8 {[%clk 0:02:33]} 17. cxd5 {[%clk 0:02:18]}  cxd5 {[%clk 0:02:33]} 18. f4 {[%clk 0:02:12]}  exf3 {[%clk 0:02:33]} 19. Bxf3 {[%clk 0:02:12]}  Ndf6 {[%clk 0:02:30]} 20. Qf2 {[%clk 0:01:23]}  Qxe3 {[%clk 0:02:29]} 21. Rfe1 {[%clk 0:01:20]}  Qf4 {[%clk 0:02:21]} 22. Nf1 {[%clk 0:01:10]}  Rxe1 {[%clk 0:02:02]} 23. Rxe1 {[%clk 0:01:10]}  Rc8 {[%clk 0:02:02]} 24. Bd1 {[%clk 0:01:05]}  Qxf2+ {[%clk 0:01:56]} 25. Kxf2 {[%clk 0:01:06]}  Ne4+ {[%clk 0:01:56]} 26. Ke2 {[%clk 0:01:03]}  Nhf6 {[%clk 0:01:50]} 27. Kd3 {[%clk 0:01:03]}  Bb4 {[%clk 0:01:46]} 28. Re2 {[%clk 0:00:54]}  a6 {[%clk 0:01:44]} 29. a3 {[%clk 0:00:47]}  Bd6 {[%clk 0:01:41]} 30. Ne3 {[%clk 0:00:44]}  Ng3 {[%clk 0:01:39]} 31. Rc2 {[%clk 0:00:44]}  Rxc2 {[%clk 0:01:36]} 32. Bxc2 {[%clk 0:00:44]}  Kf8 {[%clk 0:01:24]} 33. b4 {[%clk 0:00:45]}  Ke7 {[%clk 0:01:24]} 34. Bb3 {[%clk 0:00:45]}  Ke6 {[%clk 0:01:24]} 35. Bc3 {[%clk 0:00:44]}  Nf5 {[%clk 0:01:24]} 36. Bd2 {[%clk 0:00:39]}  Nxe3 {[%clk 0:01:18]} 37. Bxe3 {[%clk 0:00:40]}  Ne4 {[%clk 0:01:14]} 38. Bd1 {[%clk 0:00:31]}  f5 {[%clk 0:01:12]} 39. Bf3 {[%clk 0:00:22]}  b5 {[%clk 0:01:11]} 40. Bd2 {[%clk 0:00:20]}  Kf6 {[%clk 0:01:08]} 41. Be1 {[%clk 0:00:20]}  g5 {[%clk 0:01:07]} 42. g4 {[%clk 0:00:18]}  Bf4 {[%clk 0:01:02]} 43. gxf5 {[%clk 0:00:16]}  Kxf5 {[%clk 0:01:03]} 44. Bg4+ {[%clk 0:00:17]}  Kf6 {[%clk 0:00:59]} 45. Bf3 {[%clk 0:00:17]}  Bc1 {[%clk 0:00:56]} 46. Bxe4 {[%clk 0:00:16]}  dxe4+ {[%clk 0:00:56]} 47. Kxe4 {[%clk 0:00:17]}  Bxa3 {[%clk 0:00:56]} 48. Kd5 {[%clk 0:00:17]}  Bb2 {[%clk 0:00:50]} 49. Kc5 {[%clk 0:00:15]}  Ke6 {[%clk 0:00:47]} 50. d5+ {[%clk 0:00:15]}  Kd7 {[%clk 0:00:47]} 51. Bg3 {[%clk 0:00:13]}  Bc3 {[%clk 0:00:44]} 52. Bh2 {[%clk 0:00:11]}  a5 {[%clk 0:00:43]} 53. bxa5 {[%clk 0:00:10]}  Bxa5 {[%clk 0:00:43]} 54. Kxb5 {[%clk 0:00:11]}  Bd2 {[%clk 0:00:41]} 55. Kc4 {[%clk 0:00:11]}  Bf4 {[%clk 0:00:41]} 56. Bg1 {[%clk 0:00:11]}  Kd6 {[%clk 0:00:41]} 57. Bc5+ {[%clk 0:00:11]}  Kd7 {[%clk 0:00:41]} 58. Kd4 {[%clk 0:00:11]}  g6 {[%clk 0:00:40]} 59. Ke4 {[%clk 0:00:12]}  Bd6 {[%clk 0:00:39]} 60. Bxd6 {[%clk 0:00:11]}  Kxd6 {[%clk 0:00:39]} 61. Kd4 {[%clk 0:00:12]}  Kd7 {[%clk 0:00:36]} 62. Ke5 {[%clk 0:00:12]}  Ke7 {[%clk 0:00:36]} 63. d6+ {[%clk 0:00:13]}  Kd7 {[%clk 0:00:36]} 64. Kd5 {[%clk 0:00:13]}  Kd8 {[%clk 0:00:35]} 65. Ke6 {[%clk 0:00:12]}  Ke8 {[%clk 0:00:36]} 66. Ke5 {[%clk 0:00:07]}  Kd7 {[%clk 0:00:33]} 67. Kd5 {[%clk 0:00:07]}  Kd8 {[%clk 0:00:33]} 68. Kc6 {[%clk 0:00:08]}  Kc8 {[%clk 0:00:33]} 69. Kc5 {[%clk 0:00:05]}  Kd7 {[%clk 0:00:33]} 70. Kd5 {[%clk 0:00:05]} 1/2-1/2


[Site "https://www.chess.com"]

[Event "Titled Tuesday Blitz November 14 Late 2023"]
[White "Kostiukov, Alexandr"]
[Black "Li, Hui"]
[WhiteFideId "14108100"]
[BlackFideId "15400310"]
[WhiteElo "2441"]
[BlackElo "2341"]
[Result "1/2-1/2"]
[Round "7"]
[TimeControl "180+1"]
[Date "2023.11.14"]
[WhiteClock "0:00:20"]
[BlackClock "0:00:09"]
[Board "93"]

1. g3 {[%clk 0:02:50]}  d5 {[%clk 0:02:54]} 2. Bg2 {[%clk 0:02:50]}  c6 {[%clk 0:02:55]} 3. d3 {[%clk 0:02:50]}  Nf6 {[%clk 0:02:55]} 4. e4 {[%clk 0:02:50]}  dxe4 {[%clk 0:02:54]} 5. dxe4 {[%clk 0:02:45]}  Qxd1+ {[%clk 0:02:55]} 6. Kxd1 {[%clk 0:02:45]}  e5 {[%clk 0:02:54]} 7. f3 {[%clk 0:02:44]}  Be6 {[%clk 0:02:49]} 8. Be3 {[%clk 0:02:44]}  Nbd7 {[%clk 0:02:44]} 9. Nd2 {[%clk 0:02:45]}  Bc5 {[%clk 0:02:44]} 10. Ke2 {[%clk 0:02:45]}  Ke7 {[%clk 0:02:34]} 11. Bh3 {[%clk 0:02:44]}  Bxh3 {[%clk 0:02:30]} 12. Nxh3 {[%clk 0:02:44]}  Bxe3 {[%clk 0:02:30]} 13. Kxe3 {[%clk 0:02:45]}  Nc5 {[%clk 0:02:27]} 14. Nf2 {[%clk 0:02:38]}  Nfd7 {[%clk 0:02:19]} 15. a4 {[%clk 0:02:36]}  a5 {[%clk 0:02:18]} 16. Nc4 {[%clk 0:02:33]}  Ne6 {[%clk 0:02:15]} 17. c3 {[%clk 0:02:31]}  f6 {[%clk 0:02:14]} 18. Rhd1 {[%clk 0:02:31]}  Ndc5 {[%clk 0:02:08]} 19. Nd3 {[%clk 0:02:23]}  Nxd3 {[%clk 0:01:55]} 20. Rxd3 {[%clk 0:02:24]}  Nc5 {[%clk 0:01:54]} 21. Rdd1 {[%clk 0:02:24]}  Rhd8 {[%clk 0:01:53]} 22. Rxd8 {[%clk 0:02:17]}  Kxd8 {[%clk 0:01:53]} 23. f4 {[%clk 0:01:50]}  exf4+ {[%clk 0:01:47]} 24. gxf4 {[%clk 0:01:51]}  g6 {[%clk 0:01:42]} 25. h4 {[%clk 0:01:50]}  Ke7 {[%clk 0:01:42]} 26. h5 {[%clk 0:01:49]}  Kf7 {[%clk 0:01:33]} 27. hxg6+ {[%clk 0:01:47]}  hxg6 {[%clk 0:01:33]} 28. Rh1 {[%clk 0:01:45]}  Kg7 {[%clk 0:01:24]} 29. Rd1 {[%clk 0:01:39]}  Kf7 {[%clk 0:01:08]} 30. Rh1 {[%clk 0:01:20]}  Kg7 {[%clk 0:01:08]} 31. f5 {[%clk 0:01:15]}  gxf5 {[%clk 0:00:52]} 32. exf5 {[%clk 0:01:15]}  Nxa4 {[%clk 0:00:52]} 33. Rg1+ {[%clk 0:01:00]}  Kf7 {[%clk 0:00:45]} 34. Nd6+ {[%clk 0:00:59]}  Ke7 {[%clk 0:00:45]} 35. Ne4 {[%clk 0:00:56]}  Nxb2 {[%clk 0:00:42]} 36. Rg7+ {[%clk 0:00:54]}  Kf8 {[%clk 0:00:42]} 37. Rxb7 {[%clk 0:00:54]}  Nc4+ {[%clk 0:00:41]} 38. Kd4 {[%clk 0:00:55]}  Ne5 {[%clk 0:00:14]} 39. Nxf6 {[%clk 0:00:52]}  Nf3+ {[%clk 0:00:14]} 40. Kc5 {[%clk 0:00:44]}  a4 {[%clk 0:00:09]} 41. Nd7+ {[%clk 0:00:43]}  Kg8 {[%clk 0:00:01]} 42. Rb1 {[%clk 0:00:32]}  a3 {[%clk 0:00:01]} 43. Nb6 {[%clk 0:00:28]}  a2 {[%clk 0:00:01]} 44. Ra1 {[%clk 0:00:28]}  Ra5+ {[%clk 0:00:02]} 45. Kxc6 {[%clk 0:00:27]}  Rxf5 {[%clk 0:00:03]} 46. Rxa2 {[%clk 0:00:26]}  Ne5+ {[%clk 0:00:03]} 47. Kb7 {[%clk 0:00:25]}  Rf7+ {[%clk 0:00:03]} 48. Ka6 {[%clk 0:00:24]}  Rf6 {[%clk 0:00:03]} 49. Rb2 {[%clk 0:00:22]}  Nc4 {[%clk 0:00:02]} 50. Rb4 {[%clk 0:00:22]}  Nxb6 {[%clk 0:00:02]} 51. Rxb6 {[%clk 0:00:22]}  Rf4 {[%clk 0:00:02]} 52. Rc6 {[%clk 0:00:21]}  Kf7 {[%clk 0:00:02]} 53. c4 {[%clk 0:00:21]}  Ke7 {[%clk 0:00:02]} 54. c5 {[%clk 0:00:20]}  Kd7 {[%clk 0:00:03]} 55. Rd6+ {[%clk 0:00:18]}  Kc7 {[%clk 0:00:03]} 56. Kb5 {[%clk 0:00:19]}  Rf1 {[%clk 0:00:02]} 57. Rc6+ {[%clk 0:00:19]}  Kb7 {[%clk 0:00:02]} 58. Rb6+ {[%clk 0:00:19]}  Kc7 {[%clk 0:00:03]} 59. Rh6 {[%clk 0:00:17]}  Rb1+ {[%clk 0:00:03]} 60. Kc4 {[%clk 0:00:18]}  Rc1+ {[%clk 0:00:04]} 61. Kd5 {[%clk 0:00:18]}  Rd1+ {[%clk 0:00:04]} 62. Ke4 {[%clk 0:00:19]}  Re1+ {[%clk 0:00:04]} 63. Kd3 {[%clk 0:00:18]}  Rc1 {[%clk 0:00:04]} 64. Kd4 {[%clk 0:00:18]}  Rd1+ {[%clk 0:00:05]} 65. Kc3 {[%clk 0:00:18]}  Rc1+ {[%clk 0:00:05]} 66. Kb4 {[%clk 0:00:18]}  Rb1+ {[%clk 0:00:06]} 67. Ka3 {[%clk 0:00:18]}  Rc1 {[%clk 0:00:06]} 68. Rh5 {[%clk 0:00:18]}  Kc6 {[%clk 0:00:06]} 69. Kb4 {[%clk 0:00:18]}  Rb1+ {[%clk 0:00:06]} 70. Kc4 {[%clk 0:00:19]}  Rc1+ {[%clk 0:00:07]} 71. Kd4 {[%clk 0:00:19]}  Rd1+ {[%clk 0:00:07]} 72. Ke3 {[%clk 0:00:19]}  Rc1 {[%clk 0:00:08]} 73. Kd4 {[%clk 0:00:19]}  Rd1+ {[%clk 0:00:08]} 74. Kc4 {[%clk 0:00:19]}  Rc1+ {[%clk 0:00:09]} 75. Kd4 {[%clk 0:00:20]} 1/2-1/2


[Site "https://www.chess.com"]

[Event "Titled Tuesday Blitz November 14 Late 2023"]
[White "Golubenko, Valentina"]
[Black "Estrada Nieto, Julian"]
[WhiteFideId "4501993"]
[BlackFideId "5101018"]
[WhiteElo "2329"]
[BlackElo "2434"]
[Result "1-0"]
[Round "7"]
[TimeControl "180+1"]
[Date "2023.11.14"]
[WhiteClock "0:00:13"]
[BlackClock "0:01:00"]
[Board "95"]

1. d4 {[%clk 0:03:00]}  d5 {[%clk 0:02:59]} 2. g3 {[%clk 0:03:00]}  Nf6 {[%clk 0:02:59]} 3. Bg2 {[%clk 0:03:00]}  c6 {[%clk 0:02:59]} 4. Nf3 {[%clk 0:03:00]}  Bf5 {[%clk 0:02:59]} 5. O-O {[%clk 0:03:00]}  Nbd7 {[%clk 0:02:59]} 6. Nbd2 {[%clk 0:03:01]}  e6 {[%clk 0:02:59]} 7. c4 {[%clk 0:03:01]}  Be7 {[%clk 0:02:58]} 8. Nh4 {[%clk 0:02:57]}  Bg4 {[%clk 0:02:55]} 9. Nhf3 {[%clk 0:02:55]}  O-O {[%clk 0:02:54]} 10. b3 {[%clk 0:02:51]}  a5 {[%clk 0:02:53]} 11. Bb2 {[%clk 0:02:48]}  a4 {[%clk 0:02:53]} 12. bxa4 {[%clk 0:02:45]}  Qa5 {[%clk 0:02:53]} 13. c5 {[%clk 0:02:23]}  Qxa4 {[%clk 0:02:52]} 14. Nb3 {[%clk 0:02:18]}  h6 {[%clk 0:02:47]} 15. Nfd2 {[%clk 0:02:01]}  Rfe8 {[%clk 0:02:34]} 16. Qe1 {[%clk 0:02:00]}  Qb5 {[%clk 0:02:31]} 17. f3 {[%clk 0:01:55]}  Bf5 {[%clk 0:02:31]} 18. e4 {[%clk 0:01:51]}  Bg6 {[%clk 0:02:26]} 19. f4 {[%clk 0:01:25]}  dxe4 {[%clk 0:02:19]} 20. Nxe4 {[%clk 0:01:25]}  Nxe4 {[%clk 0:02:19]} 21. Bxe4 {[%clk 0:01:24]}  Bxe4 {[%clk 0:02:18]} 22. Qxe4 {[%clk 0:01:24]}  Nf6 {[%clk 0:02:18]} 23. Qf3 {[%clk 0:01:22]}  Bf8 {[%clk 0:01:54]} 24. Rfb1 {[%clk 0:01:17]}  Qc4 {[%clk 0:01:52]} 25. Nd2 {[%clk 0:01:13]}  Qd5 {[%clk 0:01:51]} 26. Qxd5 {[%clk 0:01:09]}  exd5 {[%clk 0:01:51]} 27. Bc3 {[%clk 0:01:06]}  Ra7 {[%clk 0:01:44]} 28. Rb3 {[%clk 0:00:55]}  Re2 {[%clk 0:01:38]} 29. a4 {[%clk 0:00:34]}  Ng4 {[%clk 0:01:24]} 30. a5 {[%clk 0:00:28]}  Nxh2 {[%clk 0:01:14]} 31. Rab1 {[%clk 0:00:20]}  Rxd2 {[%clk 0:01:10]} 32. Bxd2 {[%clk 0:00:19]}  Nf3+ {[%clk 0:01:10]} 33. Rxf3 {[%clk 0:00:19]}  Be7 {[%clk 0:01:05]} 34. Rfb3 {[%clk 0:00:19]}  Bf6 {[%clk 0:01:03]} 35. Be3 {[%clk 0:00:18]}  Ra8 {[%clk 0:01:03]} 36. Rxb7 {[%clk 0:00:17]}  Re8 {[%clk 0:01:04]} 37. Rb8 {[%clk 0:00:16]}  Rxb8 {[%clk 0:01:04]} 38. Rxb8+ {[%clk 0:00:16]}  Kh7 {[%clk 0:01:05]} 39. a6 {[%clk 0:00:16]}  Kg6 {[%clk 0:01:04]} 40. g4 {[%clk 0:00:16]}  h5 {[%clk 0:01:04]} 41. f5+ {[%clk 0:00:16]}  Kh7 {[%clk 0:01:04]} 42. g5 {[%clk 0:00:17]}  Be7 {[%clk 0:01:04]} 43. a7 {[%clk 0:00:17]}  g6 {[%clk 0:01:05]} 44. f6 {[%clk 0:00:16]}  Bf8 {[%clk 0:01:04]} 45. Rxf8 {[%clk 0:00:14]}  h4 {[%clk 0:01:01]} 46. a8=Q {[%clk 0:00:13]}  h3 {[%clk 0:01:00]} 47. Rh8# {[%clk 0:00:13]} 1-0


[Site "https://www.chess.com"]

[Event "Titled Tuesday Blitz November 14 Late 2023"]
[White "Gasparyan, David"]
[Black "AndresDelgado77"]
[WhiteFideId "13311980"]
[WhiteElo "2478"]
[BlackElo "2330"]
[Result "1-0"]
[Round "7"]
[TimeControl "180+1"]
[Date "2023.11.14"]
[WhiteClock "0:01:41"]
[BlackClock "0:00:00"]
[Board "99"]

1. d4 {[%clk 0:02:53]}  Nf6 {[%clk 0:02:53]} 2. g3 {[%clk 0:02:53]}  c5 {[%clk 0:02:42]} 3. Nf3 {[%clk 0:02:49]}  cxd4 {[%clk 0:02:38]} 4. Nxd4 {[%clk 0:02:47]}  g6 {[%clk 0:02:34]} 5. Bg2 {[%clk 0:02:47]}  Bg7 {[%clk 0:02:34]} 6. O-O {[%clk 0:02:46]}  O-O {[%clk 0:02:34]} 7. c4 {[%clk 0:02:41]}  Nc6 {[%clk 0:02:33]} 8. Nc3 {[%clk 0:02:40]}  Nxd4 {[%clk 0:02:32]} 9. Qxd4 {[%clk 0:02:40]}  d6 {[%clk 0:02:32]} 10. Rd1 {[%clk 0:02:35]}  Qa5 {[%clk 0:02:23]} 11. Bd2 {[%clk 0:02:10]}  Ng4 {[%clk 0:02:02]} 12. Qd5 {[%clk 0:02:07]}  Qb6 {[%clk 0:01:54]} 13. Be1 {[%clk 0:02:07]}  Qxb2 {[%clk 0:01:17]} 14. Rab1 {[%clk 0:02:00]}  Qc2 {[%clk 0:01:04]} 15. Be4 {[%clk 0:01:55]}  Qxc3 {[%clk 0:00:45]} 16. Bxc3 {[%clk 0:01:53]}  Bxc3 {[%clk 0:00:46]} 17. Qd3 {[%clk 0:01:49]}  Ba5 {[%clk 0:00:40]} 18. Bxb7 {[%clk 0:01:47]}  Bf5 {[%clk 0:00:16]} 19. e4 {[%clk 0:01:44]}  Ne5 {[%clk 0:00:15]} 20. Qa3 {[%clk 0:01:42]}  Nxc4 {[%clk 0:00:00]} 21. Qa4 {[%clk 0:01:41]} 1-0


[Site "https://www.chess.com"]